bitfinex/quotes_ETHUSD_20251012
["timestamp","ask_amount","ask_price","bid_price","bid_amount"]
[1760229937241,6.71318443,3734.9,3734.8,0.13]
[1760229937448,32.67759123,3734.7,3734.6,2.22272174]
[1760229937744,34.69659123,3734.7,3734.6,2.22272174]
[1760229938046,35.31638597,3734.7,3734.6,2.9e-07]
[1760229938258,36.4140443,3734.7,3734.6,2.9e-07]
[1760229938551,2.6783822,3733.6,3733.2,1.23]
[1760229938773,1.92,3733.4,3733.2,2.46]
[1760229939049,2.06426211,3733.5,3733.2,2.46]
[1760229939251,0.24426211,3733.5,3733.2,2.46]
[1760229939949,0.14426211,3733.5,3733.2,2.706]
[1760229940110,1.92,3733.3,3733.2,3.69]
[1760229940313,23.193132,3733.3,3733.2,3.69]
[1760229940538,34.59859534,3733.3,3733.2,3.69]
[1760229940725,11.526455,3733.3,3733.2,3.69]
[1760229940926,6.494467,3733.3,3733.2,3.69]
[1760229941519,1.92,3733.3,3733.2,5.289]
[1760229941842,8.261532,3733.3,3733.2,5.289]
[1760229942018,8.261532,3733.3,3733.2,4.92]
[1760229942214,30.0,3733.1,3730.2,2.68079782]
[1760229942440,1.92,3732.5,3730.8,0.4351]
[1760229942711,1.92,3731.9,3731.2,0.4351]
[1760229942917,0.14426211,3731.8,3731.3,0.92653355]
[1760229943119,0.14426211,3731.8,3731.5,2.67987671]
[1760229943541,0.14426211,3731.8,3731.3,0.92653355]
[1760229943915,0.14426211,3731.8,3731.6,0.6336]
[1760229944158,0.14426211,3731.8,3731.7,2.67974381]
[1760229944453,2.23470611,3731.8,3731.7,1.00844438]
[1760229944660,0.14426211,3731.8,3731.7,1.23]
[1760229944870,27.62879111,3731.8,3731.7,1.23]
[1760229945048,24.55493211,3731.8,3731.7,1.23]
[1760229945243,23.09878811,3731.8,3731.7,1.23]
[1760229945433,23.20028811,3731.8,3731.7,1.23]
[1760229945631,28.98818211,3731.8,3731.7,1.23]
[1760229946157,28.98818211,3731.8,3731.7,2.46]
[1760229946515,5.94358247,3731.8,3731.7,2.46]
[1760229946716,35.94358247,3731.8,3731.7,2.46]
[1760229946932,20.09384247,3731.8,3731.7,2.46]
[1760229947233,18.89712947,3731.8,3731.7,2.46]
[1760229947760,34.36452547,3731.8,3731.7,3.69]
[1760229948459,33.99315147,3731.8,3731.7,3.69]
[1760229948763,34.46603547,3731.8,3731.7,3.69]
[1760229948926,34.46603547,3731.8,3731.7,4.92]
[1760229949760,35.94358247,3731.8,3731.7,0.23165115]
[1760229950261,35.94358247,3731.8,3731.7,1.46165115]
[1760229950636,28.09421847,3731.8,3731.7,1.46165115]
[1760229951160,27.82915647,3731.8,3731.7,1.46165115]
[1760229951370,27.56065347,3731.8,3731.7,1.46165115]
[1760229951574,27.56065347,3731.8,3731.7,2.69165115]
[1760229951780,8.86192647,3731.8,3731.7,2.96081627]
[1760229951944,7.76377811,3731.8,3731.7,2.96081627]
[1760229952138,7.76377811,3731.8,3731.7,2.69165115]
[1760229952336,8.61500772,3731.8,3731.7,2.69165115]
[1760229952764,35.59516372,3731.8,3731.7,2.69165115]
[1760229952974,35.59516372,3731.8,3731.7,3.92165115]
[1760229953383,35.59516372,3731.8,3731.7,1.23711816]
[1760229953689,35.94108247,3731.8,3731.7,1.23711816]
[1760229954381,35.94108247,3731.8,3731.7,2.46711816]
[1760229954698,21.80244547,3731.8,3731.7,2.46711816]
[1760229954846,2.76586085,3731.8,3731.7,2.46711816]
[1760229955041,22.23552085,3731.8,3731.7,2.46711816]
[1760229955388,0.14426211,3731.8,3731.7,3.18522998]
[1760229955695,0.39654962,3732.8,3731.7,4.41522998]
[1760229955842,12.772058,3732.7,3731.9,2.67958786]
[1760229956041,12.772058,3732.7,3732.0,2.67951501]
[1760229956286,2.287846,3732.7,3732.2,2.67938481]
[1760229956488,1.92,3732.8,3732.3,0.4714]
[1760229956646,12.632858,3732.9,3732.4,0.4714]
[1760229956647,4.072912,3732.9,3732.4,0.4714]
[1760229956844,4.072912,3732.9,3732.6,2.67909242]
[1760229957149,6.707648,3733.3,3732.6,2.67908792]
[1760229957489,1.92,3733.0,3732.7,0.53583074]
[1760229957790,14.015666,3733.1,3732.7,0.53583074]
[1760229957947,1.92,3733.0,3732.7,0.53583074]
[1760229958284,6.1254,3733.1,3732.7,0.4714]
[1760229958452,1.92,3732.8,3732.7,1.7014]
[1760229958654,1.92,3733.0,3732.7,1.7014]
[1760229958854,1.92,3732.8,3732.7,1.23]
[1760229959060,10.998849,3732.8,3732.7,1.23]
[1760229959268,10.355849,3732.8,3732.7,1.23]
[1760229959477,8.6734,3732.8,3732.7,1.23]
[1760229959846,8.6734,3732.8,3732.7,2.46]
[1760229960244,2.044734,3733.1,3732.7,3.1774]
[1760229960443,1.92,3733.3,3732.8,0.4714]
[1760229960649,0.35567999,3733.7,3732.9,3.15026922]
[1760229960854,1.92,3733.5,3732.9,0.4714]
[1760229961194,30.0,3734.2,3733.0,2.6788106]
[1760229961407,1.92,3733.9,3733.2,2.6786646]
[1760229961688,6.784746,3734.0,3733.3,0.4714]
[1760229961895,6.770298,3734.0,3733.3,3.14992631]
[1760229962055,8.45911,3734.0,3733.4,2.99345613]
[1760229962251,3.378524,3734.0,3733.4,0.31499263]
[1760229962452,12.36685,3734.3,3733.7,2.67824335]
[1760229962677,12.36685,3734.3,3733.6,2.67837693]
[1760229962678,6.024027,3734.3,3733.6,2.67837693]
[1760229962851,6.024027,3734.3,3733.5,1.23]
[1760229963052,6.024027,3734.3,3733.6,0.4714]
[1760229963374,1.92,3734.0,3733.6,0.4714]
[1760229963598,0.39654962,3734.4,3733.7,0.43798385]
[1760229963755,1.92,3734.2,3733.8,2.67822973]
[1760229964089,0.35567999,3734.6,3734.1,0.2145]
[1760229964296,0.39654962,3735.0,3734.2,0.4714]
[1760229964594,5.478551,3735.6,3735.0,2.67731519]
[1760229964773,3.759114,3735.6,3735.1,0.4714]
[1760229965080,24.118782,3736.4,3735.2,0.6336]
[1760229965277,18.615862,3736.4,3735.9,2.67672438]
[1760229965483,0.35567999,3736.4,3736.0,0.4714]
[1760229965653,0.001,3736.6,3736.3,0.2145]
[1760229966079,0.001,3736.6,3736.4,0.4714]
[1760229966247,4.27156099,3736.5,3736.1,0.2145]
[1760229966467,0.001,3736.6,3736.3,2.67637916]
[1760229966798,0.001,3736.6,3736.5,2.67630135]
[1760229967010,0.001,3737.4,3736.6,0.6336]
[1760229967207,0.001,3737.4,3737.3,2.67572846]
[1760229967708,0.001,3737.4,3737.3,3.14712846]
[1760229967875,0.001,3737.4,3737.3,0.4714]
[1760229968062,0.001,3737.4,3737.3,3.78072846]
[1760229968264,0.001,3737.4,3737.3,3.52520131]
[1760229968777,0.001,3737.4,3737.3,2.07947285]
[1760229968992,0.001,3737.4,3737.3,4.75520131]
[1760229969189,0.001,3737.4,3737.3,5.38880131]
[1760229970075,0.001,3737.4,3737.3,6.61880131]
[1760229971408,0.001,3737.4,3737.3,7.84880131]
[1760229973103,0.001,3737.4,3737.3,9.07880131]
[1760229974531,0.001,3737.4,3737.3,10.30880131]
[1760229974706,0.001,3738.3,3738.2,3.30868426]
[1760229975024,0.001,3738.3,3738.2,3.63955269]
[1760229975413,0.001,3738.3,3738.2,4.11095269]
[1760229976030,0.001,3738.3,3738.2,5.34095269]
[1760229977323,0.001,3738.3,3738.2,5.93735269]
[1760229977509,0.001,3738.3,3738.2,6.57095269]
[1760229978105,0.001,3738.7,3738.6,3.30839805]
[1760229978423,0.001,3738.7,3738.6,3.90672731]
[1760229978629,0.001,3738.7,3738.6,4.37812731]
[1760229978926,0.001,3738.7,3738.6,5.60812731]
[1760229980389,0.001,3738.7,3738.6,6.83812731]
[1760229981801,0.001,3738.7,3738.6,8.06812731]
[1760229983229,0.001,3738.7,3738.6,9.29812731]
[1760229984731,0.001,3738.7,3738.6,10.66172731]
[1760229985098,0.001,3738.7,3738.6,9.89452731]
[1760229985819,0.001,3738.7,3738.6,6.15]
[1760229986130,16.295117,3738.7,3738.6,7.8294]
[1760229986292,5.409574,3738.7,3738.6,7.8294]
[1760229986499,5.409574,3738.7,3738.6,7.38]
[1760229986735,4.5957265,3738.7,3738.6,7.38]
[1760229986906,15.7944685,3738.7,3738.6,7.38]
[1760229987421,15.7944685,3738.7,3738.6,8.61]
[1760229987819,21.3164825,3738.7,3738.6,8.61]
[1760229988022,14.3720825,3738.7,3738.6,8.61]
[1760229988600,14.4731825,3738.7,3738.6,7.1603701]
[1760229988942,26.4996755,3738.7,3738.6,4.48077634]
[1760229989098,26.4996755,3738.7,3738.6,1.80118257]
[1760229989305,10.015263,3738.7,3738.6,1.80118257]
[1760229989537,12.2517845,3738.7,3738.6,1.80118257]
[1760229989742,13.6359815,3738.7,3738.6,1.80118257]
[1760229990109,13.6359815,3738.7,3738.6,3.03118257]
[1760229990318,13.7370815,3738.7,3738.6,3.03118257]
[1760229990708,15.7207845,3738.7,3738.6,3.03118257]
[1760229991028,13.7207845,3738.7,3738.6,3.03118257]
[1760229991225,4.701525,3738.7,3738.6,3.47368257]
[1760229991434,4.701525,3738.7,3738.6,4.70368257]
[1760229992155,21.940996,3738.7,3738.6,4.70368257]
[1760229992318,20.860148,3738.7,3738.6,4.70368257]
[1760229992904,4.626587,3738.7,3738.6,5.93368257]
[1760229993346,1.921,3738.7,3738.6,5.93368257]
[1760229993502,0.001,3738.7,3738.6,7.42815042]
[1760229993707,0.001,3738.7,3738.6,10.10294847]
[1760229993908,0.001,3738.7,3738.6,5.93368257]
[1760229994108,0.001,3738.7,3738.6,9.83848062]
[1760229994352,0.001,3738.7,3738.6,7.16368257]
[1760229995231,0.001,3738.7,3738.6,9.83848062]
[1760229995427,0.001,3738.7,3738.6,11.06848062]
[1760229995814,0.001,3738.7,3738.6,8.39368257]
[1760229996314,0.001,3738.7,3738.6,11.06848062]
[1760229996927,0.001,3738.7,3738.6,12.29848062]
[1760229997814,0.1346,3738.7,3738.6,14.42962235]
[1760229998452,0.1346,3738.7,3738.6,15.65962235]
[1760229998754,0.1346,3738.7,3738.6,10.85368257]
[1760229998924,0.1346,3738.7,3738.6,13.08598062]
[1760229999133,0.1346,3738.7,3738.6,13.52848062]
[1760229999716,0.1346,3738.7,3738.6,14.75848062]
[1760230000120,0.1346,3738.7,3738.6,15.39208062]
[1760230000452,0.1346,3738.7,3738.6,17.19898232]
[1760230001131,0.1346,3738.7,3738.6,18.42898232]
[1760230002820,0.1346,3738.7,3738.6,19.65898232]
[1760230003029,0.1346,3738.7,3738.6,14.54368257]
[1760230003251,0.1346,3738.7,3738.6,14.10118257]
[1760230004147,0.1346,3738.7,3738.6,15.33118257]
[1760230004544,2.0546,3738.7,3738.6,15.33118257]
[1760230004743,18.151992,3738.7,3738.6,15.33118257]
[1760230004950,5.081143,3738.7,3738.6,15.33118257]
[1760230005556,5.081143,3738.7,3738.6,16.56118257]
[1760230005760,2.0546,3738.7,3738.6,16.56118257]
[1760230005962,4.58062,3738.7,3738.6,16.56118257]
[1760230006974,4.58062,3738.7,3738.6,17.79118257]
[1760230008161,2.0546,3738.7,3738.6,17.79118257]
[1760230008354,7.988214,3738.7,3738.6,19.02118257]
[1760230008759,7.12596,3738.7,3738.6,19.02118257]
[1760230008968,5.73196,3738.7,3738.6,19.02118257]
[1760230009554,20.624797,3738.7,3738.6,19.02118257]
[1760230009796,20.624797,3738.7,3738.6,20.25118257]
[1760230009797,18.222677,3738.7,3738.6,20.25118257]
[1760230010555,20.8974035,3738.7,3738.6,20.25118257]
[1760230010760,25.8821225,3738.7,3738.6,20.25118257]
[1760230011160,25.8821225,3738.7,3738.6,21.48118257]
[1760230011794,9.799769,3738.7,3738.6,21.48118257]
[1760230011969,9.318769,3738.7,3738.6,21.48118257]
[1760230012168,11.9934955,3738.7,3738.6,21.48118257]
[1760230012404,12.0924955,3738.7,3738.6,21.48118257]
[1760230012695,35.05825622,3738.7,3738.6,22.71118257]
[1760230013255,13.9230355,3738.7,3738.6,22.71118257]
[1760230013802,30.5289365,3738.7,3738.6,22.71118257]
[1760230014006,30.5289365,3738.7,3738.6,23.94118257]
[1760230014764,19.8294085,3738.7,3738.6,23.94118257]
[1760230014965,5.317508,3738.7,3738.6,23.94118257]
[1760230015296,7.9922345,3738.7,3738.6,25.17118257]
[1760230015511,3.72935,3738.7,3738.6,25.17118257]
[1760230015996,5.64935,3738.7,3738.6,25.17318257]
[1760230016827,5.64935,3738.7,3738.6,26.40318257]
[1760230016971,34.6947265,3738.7,3738.6,26.40318257]
[1760230017171,33.5878905,3738.7,3738.6,26.40318257]
[1760230017504,32.3692795,3738.7,3738.6,26.40318257]
[1760230017708,32.4682795,3738.7,3738.6,26.40318257]
[1760230018010,32.4682795,3738.7,3738.3,0.002]
[1760230018011,2.67494115,3738.4,3738.3,0.002]
[1760230018221,34.59494115,3738.4,3738.3,0.002]
[1760230018377,34.80071887,3738.4,3738.3,0.002]
[1760230019023,35.41315086,3738.4,3738.3,0.002]
[1760230019623,35.41315086,3738.4,3738.3,1.232]
[1760230020345,8.456258,3738.4,3738.3,1.232]
[1760230020644,2.566457,3738.6,3738.3,1.6014]
[1760230020822,2.566457,3738.6,3738.3,3.2941]
[1760230020988,2.719353,3738.6,3738.3,3.2941]
[1760230021192,0.001,3738.7,3738.4,0.4627]
[1760230021690,0.001,3738.7,3738.3,2.8314]
[1760230021691,5.166286,3738.6,3738.3,2.8314]
[1760230021896,9.334412,3738.4,3738.3,2.462]
[1760230022136,9.049203,3738.4,3738.3,3.692]
[1760230022830,11.82314415,3738.4,3738.3,3.692]
[1760230023128,35.19107087,3738.4,3738.3,3.692]
[1760230023291,35.54675086,3738.4,3738.3,3.692]
[1760230023691,35.54675086,3738.4,3738.3,4.922]
[1760230025128,35.54675086,3738.4,3738.3,6.152]
[1760230026318,36.59998989,3738.4,3738.3,6.152]
[1760230026497,36.8684248,3738.4,3738.3,7.382]
[1760230026833,5.2286127,3738.3,3738.2,1e-08]
[1760230027008,36.04682241,3738.3,3738.2,1e-08]
[1760230027936,36.04682241,3738.3,3738.2,1.23000001]
[1760230029531,36.04682241,3738.3,3738.2,2.46000001]
[1760230029846,36.04682241,3738.3,3738.2,1e-08]
[1760230030056,0.6336,3737.9,3737.3,3.694]
[1760230030357,32.7207,3737.4,3737.3,3.694]
[1760230030526,33.80804462,3737.4,3737.3,3.694]
[1760230030936,33.80804462,3737.4,3737.3,4.924]
[1760230031145,3.80804462,3737.4,3737.3,4.924]
[1760230031448,33.80804462,3737.4,3737.3,4.924]
[1760230031635,36.48370149,3737.4,3737.3,4.924]
[1760230031846,2.67651624,3736.2,3736.1,1.232]
[1760230032012,0.383925,3734.7,3734.3,3.14057335]
[1760230032213,1.92,3735.3,3735.1,1.23]
[1760230032542,22.832231,3735.2,3735.1,1.23]
[1760230033213,23.315923,3735.2,3735.1,1.23]
[1760230033614,23.315923,3735.2,3735.1,2.46]
[1760230034228,26.678559,3735.2,3735.1,2.46]
[1760230034742,22.670986,3735.2,3735.1,2.46]
[1760230034940,21.470506,3735.2,3735.1,3.69]
[1760230035142,15.240962,3735.2,3735.1,3.69]
[1760230035328,13.929836,3735.2,3735.1,3.69]
[1760230035838,10.780971,3735.2,3735.1,3.69]
[1760230036025,7.452103,3735.2,3735.1,3.69]
[1760230036233,7.331077,3735.2,3735.1,3.69]
[1760230036432,4.431089,3735.2,3735.1,5.289]
[1760230037377,8.502679,3735.2,3735.1,4.92]
[1760230037859,8.502679,3735.2,3735.1,6.15]
[1760230038059,5.96327,3735.2,3735.1,6.15]
[1760230038362,8.58161,3735.2,3735.1,6.15]
[1760230038559,5.231868,3735.2,3735.1,6.15]
[1760230039472,1.92,3735.2,3735.1,11.40274057]
[1760230040958,1.92,3735.2,3735.1,12.63274057]
[1760230042074,1.92,3735.2,3735.1,13.86274057]
[1760230042280,1.92,3735.2,3735.1,13.40004057]
[1760230042438,7.572124,3735.2,3735.1,13.40004057]
[1760230042773,16.245931,3737.2,3735.4,0.6336]
[1760230042977,0.1336,3735.5,3735.4,3.31068946]
[1760230043278,0.1336,3735.5,3735.4,5.04512154]
[1760230043474,0.1336,3735.5,3735.4,6.27512154]
[1760230043766,0.0997,3737.3,3736.4,2.67636754]
[1760230043767,13.532898,3737.3,3736.4,2.67636754]
[1760230043968,1.92,3737.0,3736.3,2.67644335]
[1760230044172,1.92,3737.0,3735.4,2.96443208]
[1760230044173,3.85384,3736.2,3735.4,3.43903208]
[1760230044472,13.591691,3736.0,3735.4,1.23]
[1760230044669,2.28352972,3736.1,3735.4,1.23]
[1760230044670,10.761286,3735.6,3735.4,1.23]
[1760230044874,0.36352972,3736.1,3735.5,2.67700222]
[1760230045042,2.219127,3735.8,3735.6,2.67693663]
[1760230045243,1.92,3735.8,3735.4,5.13701926]
[1760230045466,1.92,3735.7,3735.4,2.46]
[1760230045655,0.36352972,3736.1,3735.4,5.13708946]
[1760230045952,8.183415,3735.8,3735.4,5.13708946]
[1760230046155,6.770259,3735.5,3735.4,5.13708946]
[1760230046445,1.92,3735.9,3735.4,6.36708946]
[1760230046646,1.92,3735.5,3735.4,6.36708946]
[1760230046856,0.36352972,3736.1,3735.5,2.67701295]
[1760230047058,0.36352972,3736.1,3735.4,3.69]
[1760230047059,1.92,3735.9,3735.4,3.69]
[1760230047341,1.92,3735.5,3735.4,3.69]
[1760230047570,4.85945,3735.5,3735.4,3.69]
[1760230047767,1.92,3735.5,3735.4,4.92]
[1760230048048,4.741503,3735.5,3735.4,4.92]
[1760230048243,4.510703,3735.5,3735.4,4.92]
[1760230049195,6.475902,3735.5,3735.4,6.15]
[1760230050193,6.559468,3735.5,3735.4,6.15]
[1760230050899,6.559468,3735.5,3735.4,7.38]
[1760230051198,6.562054,3735.5,3735.4,7.38]
[1760230052198,6.544503,3735.5,3735.4,8.61]
[1760230052369,1.92,3735.5,3735.4,8.61]
[1760230053099,4.273243,3735.5,3735.4,11.24478166]
[1760230053290,4.273243,3735.5,3735.4,10.77018166]
[1760230053500,4.273243,3735.5,3735.4,9.84]
[1760230053998,0.1336,3735.5,3735.4,13.62528946]
[1760230054310,0.001,3735.9,3735.8,3.31040282]
[1760230054666,0.001,3735.9,3735.8,5.01500282]
[1760230054862,0.001,3735.9,3735.8,5.78419266]
[1760230056163,0.001,3735.9,3735.8,7.01419266]
[1760230057485,0.001,3735.9,3735.8,8.24419266]
[1760230057806,1e-08,3736.7,3736.6,3.30982972]
[1760230058159,1e-08,3736.7,3736.6,3.78442972]
[1760230058360,1e-08,3736.7,3736.6,4.45230542]
[1760230059113,1e-08,3736.7,3736.6,5.68230542]
[1760230059302,1e-08,3736.7,3736.6,6.48735144]
[1760230060342,1e-08,3736.7,3736.6,5.68230542]
[1760230060612,1e-08,3736.7,3736.6,7.01964892]
[1760230061990,1e-08,3736.7,3736.6,8.24964892]
[1760230062575,0.001,3738.7,3736.6,7.4934192]
[1760230062771,0.001,3739.1,3739.0,3.3081119]
[1760230062976,5.258754,3740.8,3740.5,2.67340045]
[1760230063189,2.67266502,3741.6,3740.5,3.11990045]
[1760230063506,2.67266502,3741.6,3740.6,2.67335748]
[1760230063674,2.91900589,3742.3,3740.8,2.67322497]
[1760230063879,2.67243429,3742.0,3740.8,2.67322497]
[1760230064088,2.67243429,3742.0,3740.8,3.11972497]
[1760230064291,2.67228376,3742.2,3740.8,3.11972497]
[1760230064590,0.2468,3742.3,3740.8,3.11972497]
[1760230064798,0.1166,3741.8,3740.5,1.23]
[1760230065021,0.1166,3741.8,3740.8,1.23]
[1760230065022,8.347593,3740.9,3740.8,1.23]
[1760230065223,5.202393,3740.9,3740.8,1.23]
[1760230065424,1.921,3740.9,3740.8,1.23]
[1760230065629,1.921,3740.9,3740.8,1.6765]
[1760230066423,1.921,3740.9,3740.8,2.9065]
[1760230066596,1.921,3740.9,3740.8,5.57972497]
[1760230067402,1.921,3740.9,3740.8,2.46]
[1760230067403,13.020136,3740.9,3740.8,2.46]
[1760230067595,12.44421451,3740.9,3740.8,2.46]
[1760230067901,12.44421451,3740.9,3740.8,3.69]
[1760230068106,12.68841451,3740.9,3740.8,3.69]
[1760230068495,25.87575351,3740.9,3740.8,3.69]
[1760230068692,5.839963,3740.9,3740.8,3.69]
[1760230068898,4.610487,3740.9,3740.8,3.69]
[1760230069426,13.067749,3740.9,3740.8,4.92]
[1760230069835,16.35937055,3740.9,3740.8,0.94143957]
[1760230069996,11.605417,3739.1,3738.2,0.4465]
[1760230070198,1.92,3739.3,3738.2,0.4465]
[1760230070393,1.92,3739.1,3738.4,2.67487898]
[1760230070596,1.92,3739.3,3738.4,2.67487898]
[1760230070798,1.92,3739.1,3738.2,1.6765]
[1760230071028,1.92,3738.7,3738.2,1.6765]
[1760230071340,1.92,3739.0,3738.2,4.35156931]
[1760230071503,1.92,3738.6,3738.2,4.35156931]
[1760230071707,1.92,3738.6,3738.2,1.23]
[1760230072112,1.92,3738.8,3738.2,1.23]
[1760230072305,1.92,3738.8,3738.2,2.46]
[1760230072306,1.92,3738.6,3738.2,2.46]
[1760230072617,20.588964,3740.4,3739.0,2.67448214]
[1760230072819,15.743754,3739.8,3738.9,2.6745815]
[1760230073014,14.035287,3739.6,3739.0,2.67447725]
[1760230073243,12.25347,3739.4,3739.0,2.67447725]
[1760230073448,1.92,3740.0,3739.1,0.4747]
[1760230073644,1.92,3739.6,3739.1,0.4747]
[1760230073805,1.92,3740.0,3738.8,1.23]
[1760230074009,0.37426804,3740.8,3739.0,0.6336]
[1760230074210,2.6733538,3740.7,3739.8,2.67389774]
[1760230074451,1.92,3740.4,3739.8,2.67389774]
[1760230074741,0.001,3740.9,3739.9,0.4747]
[1760230075047,13.775064,3740.3,3739.9,1.23]
[1760230075367,1.92,3740.7,3740.0,0.4747]
[1760230075541,4.398548,3740.0,3739.9,1.23]
[1760230075722,6.318548,3740.0,3739.9,1.23]
[1760230076231,1.92,3740.0,3739.9,1.23]
[1760230076431,4.427373,3740.0,3739.9,4.37856828]
[1760230076611,4.427373,3740.0,3739.9,5.60856828]
[1760230077031,1.92,3740.0,3739.9,5.60856828]
[1760230077352,3.932754,3740.0,3739.9,2.9347]
[1760230077521,3.932754,3740.0,3739.9,2.46]
[1760230077953,3.932754,3740.0,3739.9,5.13386828]
[1760230078238,1.92,3740.0,3739.9,6.36386828]
[1760230078441,3.995493,3740.0,3739.9,4.1647]
[1760230078741,13.645802,3740.0,3739.9,3.69]
[1760230078911,12.045802,3740.0,3739.9,3.69]
[1760230079134,10.274502,3740.0,3739.9,3.69]
[1760230079539,10.274502,3740.0,3739.9,4.92]
[1760230079765,12.628946,3740.0,3739.9,4.92]
[1760230080258,2.635276,3740.8,3739.9,5.3947]
[1760230080475,1.92,3740.5,3740.2,2.67362674]
[1760230080635,0.001,3740.9,3740.2,3.14832674]
[1760230080838,1.92,3740.7,3740.2,3.14832674]
[1760230081039,1.92,3740.3,3740.2,3.14832674]
[1760230081234,7.133105,3740.8,3740.2,3.14832674]
[1760230081468,0.1336,3740.2,3740.1,3.3073253]
[1760230081671,0.1336,3740.2,3740.1,4.5204323]
[1760230082064,0.1336,3740.2,3740.1,4.9951323]
[1760230082279,0.001,3740.9,3740.8,3.30682497]
[1760230082643,0.001,3740.9,3740.8,3.78152497]
[1760230083555,0.001,3740.9,3740.8,1.7047]
[1760230083741,0.001,3740.9,3740.8,4.37792497]
[1760230083938,0.001,3740.9,3740.8,1.23]
[1760230084280,7.472805,3740.9,3740.8,1.23]
[1760230084652,10.6290385,3740.9,3740.8,1.23]
[1760230084853,10.67012655,3740.9,3740.8,2.46]
[1760230085179,22.22389255,3740.9,3740.8,2.46]
[1760230085474,21.16841051,3740.9,3740.8,2.46]
[1760230085846,29.79087281,3740.2,3740.1,1.23]
[1760230086038,4.74355381,3740.2,3740.1,1.23]
[1760230086262,34.74355381,3740.2,3740.1,1.23]
[1760230086663,32.80496281,3740.2,3740.1,1.23]
[1760230086865,32.05807081,3740.2,3740.1,1.23]
[1760230087140,2.98309474,3740.9,3740.1,1.23]
[1760230087478,1.92,3740.6,3740.1,2.46]
[1760230087663,8.169666,3740.3,3740.1,2.46]
[1760230087841,10.96835,3740.2,3740.1,2.46]
[1760230088041,1.92,3740.2,3740.1,2.46]
[1760230088284,11.837911,3740.2,3740.1,2.46]
[1760230088694,0.001,3740.9,3740.2,0.6336]
[1760230088844,0.001,3741.7,3741.2,3.30653916]
[1760230089246,0.001,3741.7,3741.2,3.78123916]
[1760230089472,0.001,3741.7,3741.2,4.42667128]
[1760230090250,0.001,3741.7,3741.2,5.65667128]
[1760230090447,0.001,3741.7,3741.2,2.98373212]
[1760230090652,5.1386,3741.3,3741.2,3.90293916]
[1760230090961,5.1386,3741.3,3741.2,1.23]
[1760230091776,5.1386,3741.3,3741.2,2.46]
[1760230092477,4.303243,3741.3,3741.2,2.9347]
[1760230093191,4.303243,3741.3,3741.2,3.69]
[1760230093354,1.921,3741.3,3741.2,3.69]
[1760230093554,4.944243,3741.3,3741.2,3.69]
[1760230094758,4.944243,3741.3,3741.2,4.92]
[1760230094958,29.871318,3741.3,3741.2,4.92]
[1760230095202,24.93338271,3741.3,3741.2,4.92]
[1760230095411,27.49987284,3741.3,3741.2,4.92]
[1760230095564,26.86627284,3741.3,3741.2,4.92]
[1760230096076,34.47707584,3741.3,3741.2,6.15]
[1760230096592,34.13014343,3741.3,3741.2,6.15]
[1760230096799,34.43056344,3741.3,3741.2,1e-08]
[1760230096999,35.44064616,3741.3,3741.2,1e-08]
[1760230097201,2.67379679,3740.0,3739.9,6.14968448]
[1760230097505,23.748596,3739.8,3738.8,1.22973741]
[1760230097670,27.950318,3739.6,3738.8,1.22973741]
[1760230098007,10.289375,3738.9,3738.8,1.22973741]
[1760230098910,2.6743846,3739.2,3738.8,2.45973741]
[1760230099110,6.88758471,3739.1,3738.8,2.45973741]
[1760230099394,6.832163,3739.0,3738.8,2.45973741]
[1760230099605,2.67446671,3739.1,3738.8,2.45973741]
[1760230099606,6.661613,3739.1,3738.8,2.45973741]
[1760230099993,8.974343,3739.0,3738.8,2.45973741]
[1760230100196,8.969915,3739.0,3738.8,3.68973741]
[1760230101003,8.167394,3739.0,3738.8,3.68973741]
[1760230101208,4.249194,3739.0,3738.8,3.68973741]
[1760230101406,9.600593,3739.0,3738.8,3.68973741]
[1760230101609,31.20133993,3738.9,3738.8,4.91973741]
[1760230102065,3.25102193,3738.9,3738.8,4.91973741]
[1760230102270,31.20133993,3738.9,3738.8,4.91973741]
[1760230103064,33.12133993,3738.9,3738.8,6.14973741]
[1760230103294,33.12133993,3738.9,3738.8,1.61946263]
[1760230103473,32.5453307,3738.3,3738.2,2.46]
[1760230103675,33.1217692,3738.3,3738.2,2.46]
[1760230104308,33.60454076,3738.2,3738.1,0.002]
[1760230104516,32.54561696,3737.9,3737.4,0.002]
[1760230104694,33.82745546,3737.9,3737.4,0.002]
[1760230104869,34.66636786,3737.9,3737.4,0.002]
[1760230105266,33.17950328,3737.5,3737.4,0.002]
[1760230105582,33.93822177,3737.5,3737.4,0.002]
[1760230105777,34.5168167,3737.5,3737.4,0.002]
[1760230105990,32.5464761,3736.7,3735.8,3.692]
[1760230106192,32.9720146,3736.7,3735.8,3.692]
[1760230106395,33.1308146,3736.7,3735.8,3.692]
[1760230107190,33.55066064,3736.7,3735.8,3.692]
[1760230107416,10.08326264,3736.7,3736.6,4.92]
[1760230107574,9.65772414,3736.7,3736.6,4.92]
[1760230107910,9.81652414,3736.7,3736.6,4.92]
[1760230108201,18.61363914,3736.7,3736.6,4.92]
[1760230108572,17.88197764,3736.7,3736.6,4.92]
[1760230108775,17.88197764,3736.7,3736.6,6.15]
[1760230109271,18.05790164,3736.7,3736.6,6.15]
[1760230110209,18.05790164,3736.7,3736.6,7.38]
[1760230110411,18.85090464,3736.7,3736.6,7.38]
[1760230110813,18.4310586,3736.7,3736.6,7.38]
[1760230111015,4.304924,3736.7,3736.6,7.38]
[1760230111216,2.67588259,3737.1,3736.6,7.38]
[1760230111419,1.92,3736.8,3736.6,8.61]
[1760230111583,22.365266,3736.7,3736.6,8.61]